Cogmind - Beta 10.2 @@@ ROGUE MODE // 2022.01.20 @ 08:24:35 Player: xerxia Result: Destroyed by G-47 Trooper with Particle Gun Performance ------------- Evolutions (0) 0 Regions Visited (2) 400 Robots Destroyed (7) 35 Value Destroyed (110) 110 Prototype IDs (0) 0 Alien Tech Used (0) 0 Bonus (0) 0 TOTAL SCORE: 545 Bonus ------- None Cogmind --------- Core Integrity 0/250 Matter 300/300 Energy 100/100 System Corruption 0% Temperature Cool (9) Movement Core (300) Ox5 Location -10/Mines Parts ------- > --- POWER (1) -------- (None) > --- PROPULSION (2) --- (None) > --- UTILITY (2) ------ Medium Storage Unit Medium Storage Unit > --- WEAPON (2) ------- (None) > --- INVENTORY (12) --- Ion Engine Ion Engine Light Ion Engine Aluminum Leg Flight Unit Flight Unit Heat Sink Small Storage Unit Peak State ------------ > --- POWER ------------ Ion Engine > --- PROPULSION ------- Aluminum Leg Aluminum Leg > --- UTILITY ---------- Small Storage Unit Small Storage Unit > --- WEAPON ----------- Medium Laser Light Assault Rifle > --- INVENTORY -------- Ion Engine [Rating: 7] Favorites ----------- Power Ion Engine Engine Ion Engine Propulsion Aluminum Leg Leg Aluminum Leg Utility Medium Storage Unit Storage Medium Storage Unit Weapon Light Assault Rifle Energy Gun Medium Laser Ballistic Gun Light Assault Rifle Build | -11 -10 -10 ------- Run | Scr Mat Min Slots Evolved . | . . . Power . | . . . Propulsion . | . . . Utility . | . . . Weapon . | . . . Parts Attached 10 | 7 2 1 Power 1 | 1 . . Engine 1 | 1 . . Core . | . . . Reactor . | . . . Propulsion 2 | 2 . . Treads . | . . . Leg 2 | 2 . . Wheel . | . . . Hover . | . . . Flight . | . . . Utility 4 | 2 2 . Device . | . . . Storage 4 | 2 2 . Processor . | . . . Hackware . | . . . Protection . | . . . Artifact . | . . . Weapon 3 | 2 . 1 Energy Gun 1 | 1 . . Energy Cannon . | . . . Ballistic Gun 2 | 1 . 1 Ballistic Cannon . | . . . Launcher . | . . . Special Weapon . | . . . Impact Weapon . | . . . Slashing Weapon . | . . . Piercing Weapon . | . . . Special Melee Weapon . | . . . Unidentified Prototypes . | . . . Parts Lost 6 | . 1 5 Power 1 | . . 1 Propulsion 2 | . . 2 Utility . | . . . Weapon 3 | . 1 2 Highest Loss Streak 5 | . 1 5 Average Slot Usage (%) 93 | . 100 82 Engine 13 | . 14 12 Leg 27 | . 28 26 Storage 28 | . 28 28 Energy Gun 8 | . 14 . Ballistic Gun 14 | . 14 14 Naked Turns . | . . . Heaviest Build 24 | 16 24 22 Greatest Support 20 | 20 20 20 Greatest Overweight (x) 2 | . 1 2 Average Overweight (x) . | . . 1 Largest Inventory Capacity 12 | 8 12 12 Average Capacity 10 | 6 11 12 Most Carried 9 | 4 8 9 Average Carried 4 | 1 3 8 Final Capacity 12 | 8 12 12 Final Carried 8 | 1 8 8 Class Distribution -------------------- 100% | Mutant Dominant Class ---------------- Mutant | -10/Materials Mutant | -10/Mines Resources | -11 -10 -10 ----------- Run | Scr Mat Min Matter Collected 303 | 270 30 3 Remotely . | . . . Salvage Created 313 | 87 163 63 Parts 13 | 3 7 3 Haulers Intercepted . | . . . Recyclers Shooed . | . . . Parts Field Recycled . | . . . Retrieved Matter . | . . . Parts Self-Destructed . | . . . Prevented . | . . . Kills | -11 -10 -10 ------- Run | Scr Mat Min Combat Hostiles Destroyed 5 | . 3 2 Guns 5 | . 3 2 Classes Destroyed 3 | 1 2 . Recycler 2 | 1 1 . Swarmer 3 | . 2 1 Grunt 2 | . 1 1 Best Kill Streak 3 | 1 3 1 Combat Bots Only 2 | . 2 1 Max Kills in Single Turn 1 | 1 1 1 Gunslinging . | . . . Exploded . | . . . Melee . | . . . Uniques/NPCs Destroyed . | . . . Combat | -11 -10 -10 -------- Run | Scr Mat Min Damage Taken 878 | . 159 719 Core 251 | . 36 215 Absorbed by Shields . | . . . Core Remaining (%) 100 | 100 . . Volleys Fired 32 | 2 10 20 Largest 2 | 1 2 1 Hottest 70 | 50 70 20 Shots Fired 42 | 2 20 20 Gun 42 | 2 20 20 Cannon . | . . . Launcher . | . . . Special . | . . . Kinetic 30 | . 10 20 Thermal 12 | 2 10 . Explosive . | . . . Electromagnetic . | . . . Robot Hit Streak 7 | 2 7 6 Robot Miss Streak 3 | . 3 1 Penetration Max . | . . . Secondary Targets . | . . . Shots Hit Robots 30 | 2 12 16 Core Hits 16 | 2 6 8 Critical Hits . | . . . Critical Kills . | . . . Critical Parts Destroyed . | . . . Melee Attacks . | . . . Impact . | . . . Slashing . | . . . Piercing . | . . . Sneak Attacks . | . . . Combat Hostiles . | . . . Follow-up Attacks . | . . . Damage Inflicted 289 | 25 130 134 Guns 284 | 25 130 129 Cannons . | . . . Explosions . | . . . Melee . | . . . Ramming 5 | . . 5 Kinetic 172 | . 43 129 Thermal 112 | 25 87 . Explosive . | . . . Electromagnetic . | . . . Impact . | . . . Slashing . | . . . Piercing . | . . . Highest Corruption . | . . . Average Corruption . | . . . Corruption Purged . | . . . Overload Shots . | . . . Overflow Damage . | . . . Projectiles . | . . . Explosions . | . . . Melee . | . . . Knockbacks . | . . . Impact . | . . . Kinetic . | . . . Secondary . | . . . Self-Inflicted Damage 1 | . . 1 Shots . | . . . Rammed 3 | . . 3 Targets Rammed 3 | . . 3 Kicked . | . . . Crushed . | . . . Highest Temperature 150 | 20 150 9 Average Temperature 56 | 10 76 6 Received Heat Transfer 237 | . 18 219 Siege Activations . | . . . Robots Corrupted . | . . . Combat Hostiles . | . . . Parts Fried . | . . . Impact Corruptions . | . . . Robots Melted . | . . . Combat Hostiles . | . . . Parts Melted . | . . . Heat Transferred 333 | 74 259 . Parts Sabotaged . | . . . Parts Stolen . | . . . Parts Stripped . | . . . Power Chain Reactions . | . . . Missiles Intercepted . | . . . Alert | -11 -10 -10 ------- Run | Scr Mat Min Peak Influence 78 | 5 78 61 Initial 26 | . 3 26 Average 25 | 2 28 33 Maximum Alert Level . | . . . Low Security (%) 100 | 100 100 100 Level 1 . | . . . Level 2 . | . . . Level 3 . | . . . Level 4 . | . . . Level 5 . | . . . High Security . | . . . Max Security . | . . . Squads Dispatched 2 | . 2 . Investigation 1 | . 1 . Extermination . | . . . Reinforcement 1 | . 1 . Assault . | . . . Garrison . | . . . Intercept . | . . . Construction Impeded . | . . . Haulers Reinforced . | . . . Stealth | -11 -10 -10 --------- Run | Scr Mat Min Distress Signals . | . . . Communications Jammed . | . . . Distress Signals . | . . . Times Spotted 12 | . 6 6 Peak Tracking Total 5 | . 3 5 Tactical Retreats 1 | . . 1 Traps | -11 -10 -10 ------- Run | Scr Mat Min Traps Triggered 1 | . 1 . Indirectly . | . . . Trap Hack Attempts . | . . . Triggered . | . . . Disarmed . | . . . Reprogrammed . | . . . Reused . | . . . Traps Extracted . | . . . Installed . | . . . Triggered . | . . . Machines | -11 -10 -10 ---------- Run | Scr Mat Min Machines Disabled . | . . . Max in Single Turn . | . . . Machines Sabotaged . | . . . Garrisons Compromised . | . . . Overloaded Fab Kills . | . . . Fab Network Shutdowns . | . . . Hacking | -11 -10 -10 --------- Run | Scr Mat Min Machines Accessed . | . . . Terminals . | . . . Fabricators . | . . . Repair Stations . | . . . Recycling Units . | . . . Scanalyzers . | . . . Garrison Access . | . . . Total Hacks . | . . . Successful . | . . . Failed . | . . . Catastrophic . | . . . Database Lockouts . | . . . Manual . | . . . Terminals . | . . . Fabricators . | . . . Repair Stations . | . . . Recycling Units . | . . . Scanalyzers . | . . . Garrison Access . | . . . Terminal Hacks . | . . . Fabricator Hacks . | . . . Repair Station Hacks . | . . . Recycling Unit Hacks . | . . . Scanalyzer . | . . . Garrison Access Hacks . | . . . Unauthorized Hacks . | . . . Terminals . | . . . Fabricators . | . . . Repair Stations . | . . . Recycling Units . | . . . Scanalyzers . | . . . Garrison Access . | . . . Data Cores Recovered . | . . . Used . | . . . Hacking Detections . | . . . Full Trace Events . | . . . Feedback Events . | . . . Feedback Blocked . | . . . Robot Schematics Acquired . | . . . Robots Built . | . . . Matter . | . . . Time . | . . . Total Robot Build Rating . | . . . Part Schematics Acquired . | . . . Parts Built . | . . . Matter . | . . . Time . | . . . Total Part Build Rating . | . . . Parts Repaired . | . . . Time . | . . . Parts Recycled . | . . . Recycled Matter . | . . . Retrieved Matter . | . . . Retrieved Components . | . . . Parts Scanalyzed . | . . . Part Schematics Acquired . | . . . Parts Damaged . | . . . Bothacking | -11 -10 -10 ------------ Run | Scr Mat Min Used RIF Installer . | . . . Robots Hacked . | . . . Non-combat . | . . . Combat . | . . . Robot Hacks Applied . | . . . Relay Couplers Released . | . . . Robots Rewired . | . . . Allies Hacked . | . . . Hacks Repelled . | . . . Allies | -11 -10 -10 -------- Run | Scr Mat Min Total Allies . | . . . Largest Group . | . . . Highest-Rated Group . | . . . Highest-Rated Ally . | . . . Total Orders . | . . . Ally Attacks . | . . . Total Damage . | . . . Kills . | . . . Allies Corrupted . | . . . Allies Melted . | . . . Intel | -11 -10 -10 ------- Run | Scr Mat Min Robot Analysis Total . | . . . Derelict Logs Recovered . | . . . Drone Launches . | . . . Drone Recoveries . | . . . Exploration | -11 -10 -10 ------------- Run | Scr Mat Min Turns Passed 368 | 71 179 118 Spaces Moved 192 | 47 97 48 Core 5 | 5 . . Treads . | . . . Legs 187 | 42 97 48 Wheels . | . . . Hover . | . . . Flight . | . . . Fastest Speed 50 | 50 120 150 Average Speed 136 | 112 141 150 Slowest Speed 180 | 120 150 180 Overloaded Moves . | . . . Propulsion Burnouts . | . . . Robots Hopped . | . . . Cave-ins Triggered . | . . . Exploration Rate (%) 14 | 5 22 15 Regions Visited 2 Branch Regions 1 Pre-discovered Areas . | . . . Known Exits Taken . | . . . Unknown Exits Taken 2 | 1 1 . Scrap Searched . | . . . Spaces Dug . | . . . Terrain Destroyed . | . . . Melee . | . . . Projectile . | . . . AOE . | . . . Terrain Rammed . | . . . Walls Destroyed . | . . . Machines Disabled . | . . . Actions | -11 -10 -10 --------- Run | Scr Mat Min Total 259 | 63 121 75 Wait 6 | . 4 2 Move 190 | 46 96 48 Hop . | . . . Pick Up 17 | 8 8 1 Fast Attach . | . . . Attach 8 | 7 . 1 Detach . | . . . Swap 2 | . 2 . Drop 1 | . 1 . Fire 32 | 2 10 20 Melee . | . . . Ram 2 | . . 2 Kick 1 | . . 1 Crush . | . . . Escape Stasis . | . . . Rewire . | . . . Trap . | . . . Miscellaneous . | . . . Route ------- -11/Scrapyard -10/Materials -10/Mines History --------- Turn | Location | Event 7 | -11/Scrapyard | Discovered new exit (range 16) 72 | -11/Scrapyard | Entered Materials 235 | -10/Materials | Discovered new exit (range 12) 251 | -10/Materials | Entered Mines 304 | -10/Mines | Build established: Mutant 347 | -10/Mines | Core integrity fell below 50% 367 | -10/Mines | Core integrity fell below 20% 369 | -10/Mines | Destroyed by G-47 Trooper with Particle Gun Last Messages --------------- 00239_ ALERT: Alarm triggered, dispatching investigation squad. 00242_ K-01 Serf collects debris. 00244_ ALERT: Hostiles spotted, dispatching reinforcements to Terminal M006. 00246_ U-05 Engineer lays Concrete. 00251_ Med. Laser destroyed. LOCATION=UNKNOWN GOAL=ESCAPE 00331_ S-10 Pest destroyed. 00342_ Lgt. Assault Rifle destroyed. 00344_ Slammed into G-47 Trooper. 00344_ Aluminum Leg permanently disabled. 00344_ Destabilizing: Short circuit. 00345_ Acquired 3 matter. 00347_ Acquired Lgt. Assault Rifle. 00354_ Ion Engine destroyed. 00355_ Broken Aluminum Leg destroyed. 00360_ G-34 Mercenary destroyed. 00361_ Aluminum Leg destroyed. 00365_ Lgt. Assault Rifle destroyed. 00366_ Slammed into S-10 Pest. Map ----- +----------------------------------------------------+ | ???????????????????????????????????????????## ?? | | ??????????????????????????????????????????## #?? | | ??????????????????????????????????????????# ##? | | ??????????????????????##???????####???????? #? | | ??????????????????????# ^ ### ###??????# #? | | ?????????????????????????# ^ ######## #? | | ????????????????????????# # #? | | ??????????????????????# ^ # ###### #? | | ??????????????????????#????# ## ##????## #? | | ???????????????????????? ^ ## ?####??????# ####? | | ???????????????????????#### #?#????????????# #???? | | ???????????????????????? ?# ??????????????# #???? | | ???????????????????????? ?? #??????????????# #???? | | ???????????????????????? ##s#??????????????# #???? | | ??????????????????????? ???????######## #???? | | ??????????????????????""" ???????# #???? | | ???????????????????????"" ????????# ########???? | | ???????????????????????"" ????????# #??????????? | | ???????????????????????? ????????# #??????????? | | ????????????????????????# #?######## #??????????? | | ????????????????????????# #?# #??????????? | | ????????????????????????# #?# ########??????????? | | ????????????????????????# ### #?????????????????? | | ????????????????????????# % #?????????????????? | | ????????????????????????#%=#####?????????????????? | | ????????????????????????#@%#####?????????????????? | | ????????????????????????#gs #?????????????????? | | ????????????????????????# #?????????????????? | | ????????????????????????# ### #?????????????????? | | ????????????????????????# #?? #?????????????????? | | ????????????????????????# #??? #?????????????????? | | ????????????????????????# #????#?????????????????? | | ????????????????????????# ??????????????????????? | | ???????????????????????? ??????????????????????? | | ???????????????????????? ??????????????????????? | | ????????????????????????# ??????????????????????? | | ????????????????????????## ??????????????????????? | | ??????????????????????????#??????????????????????? | | ?????????????????????????????????????????????????? | | ?????????????????????????????????????????????????? | | ?????????????????????????????????????????????????? | | | | | | | | | | | | | | | | | | | +----------------------------------------------------+ Best States ------------- Heat Dissipation 25 Energy Generation 10 Energy Capacity 250 Matter Stores 300 Matter Capacity 300 Sight Range 16 Terrain Scan Density 10 Evasion (%) 40 Item Schematics ----------------- None Robot Schematics ------------------ None Fabricated ------------ Nothing Alien Tech Used ----------------- None Achievements -------------- None Challenges ------------ None Game ------ Seed DirtyIntegratedAccelerator Manual? 0 Play Time 00:06:05 Cumulative 45.5 hours Start 2022.01.20 @ 08:18:45 End 2022.01.20 @ 08:24:35 Sessions 1 Manual Loads 0 Difficulty Rogue Special Mode None Game No. 51 Rogue 8 Adventurer 1 Explorer 42 Win Type - Total 4 Types 4/0/0/0/0/0/0/0/0 Lore% 29 Gallery% 44 Achievement% 35 Wizard Run 0 Options --------- ASCII 0 Keyboard 0 Movement Numpad Keybinds 0 Fullscreen 1 Font 12/Smallcaps Map View 83x54 Tactical HUD 1 Map Filters NONE Filters NONE Steam 1 RUN: 81e9472c-a4db-447c-9035-3f2fe793e293